DEPARTMENT,ENTITY,DOCUMENT DATE,VENDOR NAME,EXPENSE TYPE,EXPENSE AREA,TRANSACTION NUMBER,AMOUNT,TRANSACTION DESCRIPTION
DEPARTMENT OF HEALTH,SOUTH CENTRAL AMBULANCE SERVICE NHS FOUNDATION TRUST,09/09/2020,JLT--QBE-STANDING ORDER                                          ,INSURANCE PREMIUM,OPERATIONS,1329395,"64,473.75",MOTOR FLEET INSURANCE          
DEPARTMENT OF HEALTH,SOUTH CENTRAL AMBULANCE SERVICE NHS FOUNDATION TRUST,01/07/2020,BUSY BEE CLEANING SERVICES LTD                                   ,DOMESTIC SERVICE CONTRACT,"FINANCE, ESTATES AND PROCUREMENT",1407306,"52,566.15",CLEANING CONTRACT
DEPARTMENT OF HEALTH,SOUTH CENTRAL AMBULANCE SERVICE NHS FOUNDATION TRUST,01/08/2020,BUSY BEE CLEANING SERVICES LTD                                   ,DOMESTIC SERVICE CONTRACT,"FINANCE, ESTATES AND PROCUREMENT",1407332,"53,199.69",CLEANING CONTRACT
DEPARTMENT OF HEALTH,SOUTH CENTRAL AMBULANCE SERVICE NHS FOUNDATION TRUST,10/08/2020,CLERIC COMPUTER SERVICES LTD                                     ,IT,ICT,1407359,"121,440.00",ANNUAL SOFTWARE SUPPORT
DEPARTMENT OF HEALTH,SOUTH CENTRAL AMBULANCE SERVICE NHS FOUNDATION TRUST,03/09/2020,ALLSTAR FUEL CARD SERVICES- DD ONLY                              ,DIESEL,OPERATIONS,1407503,"95,423.66",FUEL
DEPARTMENT OF HEALTH,SOUTH CENTRAL AMBULANCE SERVICE NHS FOUNDATION TRUST,12/09/2020,SIEMENS FINANCIAL SERVICES                                       ,VEHICLE LEASING,OPERATIONS,1407539,"50,528.35",VEHICLE LEASE COSTS
DEPARTMENT OF HEALTH,SOUTH CENTRAL AMBULANCE SERVICE NHS FOUNDATION TRUST,25/08/2020,SIEMENS FINANCIAL SERVICES                                       ,VEHICLE LEASING,OPERATIONS,1407540,"34,690.75",VEHICLE LEASE COSTS
DEPARTMENT OF HEALTH,SOUTH CENTRAL AMBULANCE SERVICE NHS FOUNDATION TRUST,30/08/2020,SIEMENS FINANCIAL SERVICES                                       ,VEHICLE LEASING,OPERATIONS,1407541,"36,269.22",VEHICLE LEASE COSTS
DEPARTMENT OF HEALTH,SOUTH CENTRAL AMBULANCE SERVICE NHS FOUNDATION TRUST,13/08/2020,SOCIETE GENERALE EQUIPMENT FINANCE LTD                           ,VEHICLE LEASING,NON EMERGENCY SERVICES,1407542,"54,258.28",VEHICLE LEASE COSTS
DEPARTMENT OF HEALTH,SOUTH CENTRAL AMBULANCE SERVICE NHS FOUNDATION TRUST,01/09/2020,SOCIETE GENERALE EQUIPMENT FINANCE LTD                           ,VEHICLE LEASING,OPERATIONS,1407543,"102,222.78",VEHICLE LEASE COSTS
DEPARTMENT OF HEALTH,SOUTH CENTRAL AMBULANCE SERVICE NHS FOUNDATION TRUST,30/08/2020,BRISTOL AMBULANCE E.M.S                                          ,PRIVATE AMBULANCE PROVIDERS,OPERATIONS,1408747,"25,659.19",AUG PP HOURS                   
DEPARTMENT OF HEALTH,SOUTH CENTRAL AMBULANCE SERVICE NHS FOUNDATION TRUST,04/09/2020,OVINGTON PARK PROPERTIES 2013  LTD                               ,RENTS,"FINANCE, ESTATES AND PROCUREMENT",1408799,"57,000.00",RENT - SEHRC
DEPARTMENT OF HEALTH,SOUTH CENTRAL AMBULANCE SERVICE NHS FOUNDATION TRUST,31/08/2020,PHL - PARTNERING HEALTH LTD                                      ,EXTERNAL CONTRACT,OPERATIONS,1408844,"28,500.51",AUG 111 CHARGES                
DEPARTMENT OF HEALTH,SOUTH CENTRAL AMBULANCE SERVICE NHS FOUNDATION TRUST,14/08/2020,UNIVERSITY OF CUMBRIA                                            ,EXTERNAL COURSE FEES/TRAINING,CLINICAL SERVICES,1410574,"31,875.00",BSC PATHWAY LEVELS 5 AND 6
DEPARTMENT OF HEALTH,SOUTH CENTRAL AMBULANCE SERVICE NHS FOUNDATION TRUST,21/08/2020,UNIVERSITY OF PORTSMOUTH                                         ,EXTERNAL COURSE FEES/TRAINING,CLINICAL SERVICES,1410575,"111,000.00",PARAMEDIC PRACTICE
DEPARTMENT OF HEALTH,SOUTH CENTRAL AMBULANCE SERVICE NHS FOUNDATION TRUST,17/08/2020,STREAMLINE (KENT) LTD                                            ,PTS PRIVATE PROVIDERS,NON EMERGENCY SERVICES,1410607,"44,887.80",AUG PP HOURS                   
DEPARTMENT OF HEALTH,SOUTH CENTRAL AMBULANCE SERVICE NHS FOUNDATION TRUST,24/08/2020,STREAMLINE (KENT) LTD                                            ,PTS PRIVATE PROVIDERS,NON EMERGENCY SERVICES,1410608,"45,461.40",AUG PP HOURS                   
DEPARTMENT OF HEALTH,SOUTH CENTRAL AMBULANCE SERVICE NHS FOUNDATION TRUST,24/08/2020,ELITE MEDICAL AND AMBULANCE SERVICE LTD                          ,PTS PRIVATE PROVIDERS,NON EMERGENCY SERVICES,1410609,"39,203.03",AUG PP HOURS                   
DEPARTMENT OF HEALTH,SOUTH CENTRAL AMBULANCE SERVICE NHS FOUNDATION TRUST,09/08/2020,MEDI4 AMBULANCE SERVICES LTD                                     ,PTS PRIVATE PROVIDERS,NON EMERGENCY SERVICES,1410610,"43,343.07",AUG PP HOURS                   
DEPARTMENT OF HEALTH,SOUTH CENTRAL AMBULANCE SERVICE NHS FOUNDATION TRUST,18/08/2020,F.A.S.T. AMBULANCE SERVICE LTD                                   ,PTS PRIVATE PROVIDERS,NON EMERGENCY SERVICES,1410611,"37,984.60",AUG PP HOURS                   
DEPARTMENT OF HEALTH,SOUTH CENTRAL AMBULANCE SERVICE NHS FOUNDATION TRUST,31/07/2020,MEDI4 AMBULANCE SERVICES LTD                                     ,PTS PRIVATE PROVIDERS,NON EMERGENCY SERVICES,1410612,"35,542.85",AUG PP HOURS                   
DEPARTMENT OF HEALTH,SOUTH CENTRAL AMBULANCE SERVICE NHS FOUNDATION TRUST,10/09/2020,ALLSTAR FUEL CARD SERVICES- DD ONLY                              ,DIESEL,OPERATIONS,1411307,"89,253.13",FUEL
DEPARTMENT OF HEALTH,SOUTH CENTRAL AMBULANCE SERVICE NHS FOUNDATION TRUST,16/08/2020,KK & LOGISTICS                                                   ,TAXI HIRE - PTS,NON EMERGENCY SERVICES,1411444,"33,183.45",AUG PP HOURS                   
DEPARTMENT OF HEALTH,SOUTH CENTRAL AMBULANCE SERVICE NHS FOUNDATION TRUST,23/08/2020,KK & LOGISTICS                                                   ,TAXI HIRE - PTS,NON EMERGENCY SERVICES,1411445,"25,472.24",AUG PP HOURS                   
DEPARTMENT OF HEALTH,SOUTH CENTRAL AMBULANCE SERVICE NHS FOUNDATION TRUST,30/06/2020,GREEN METRO CARS READING LTD                                     ,TAXI HIRE - PTS,NON EMERGENCY SERVICES,1411531,"36,534.60",AUG PP HOURS                   
DEPARTMENT OF HEALTH,SOUTH CENTRAL AMBULANCE SERVICE NHS FOUNDATION TRUST,15/08/2020,SMT AMBULANCE SERVICE LTD                                        ,PTS PRIVATE PROVIDERS,NON EMERGENCY SERVICES,1411538,"26,146.25",AUG PP HOURS                   
DEPARTMENT OF HEALTH,SOUTH CENTRAL AMBULANCE SERVICE NHS FOUNDATION TRUST,31/08/2020,CHURCHILL CONTRACT SERVICES LTD                                  ,MAKE READY SERVICES,CLINICAL SERVICES,1411579,"303,852.01",MAKE READY SERVICES YEAR 6 AUG 
DEPARTMENT OF HEALTH,SOUTH CENTRAL AMBULANCE SERVICE NHS FOUNDATION TRUST,24/08/2020,TP HEALTH LTD                                                    ,OCCUP HEALTH NON NHS,HUMAN RESOURCES (HR),1411599,"105,548.88",OCCUPATIONAL HEALTH SERVICE PROVISION
DEPARTMENT OF HEALTH,SOUTH CENTRAL AMBULANCE SERVICE NHS FOUNDATION TRUST,04/09/2020,COMPLETE NETWORKS LTD                                            ,IT,ICT,1413282,"32,100.00",EXTERNAL NETWORK PROTECTION
DEPARTMENT OF HEALTH,SOUTH CENTRAL AMBULANCE SERVICE NHS FOUNDATION TRUST,07/09/2020,DEXTER BROWN LTD                                                 ,RENTS,OPERATIONS,1413293,"30,949.08",RENT/SERVICE CHARGE - MILTON KEYNES
DEPARTMENT OF HEALTH,SOUTH CENTRAL AMBULANCE SERVICE NHS FOUNDATION TRUST,30/08/2020,TRUSTCO PLC                                                      ,IT,OPERATIONS,1413325,"57,255.38",ICAD SERVER REPLACEMENTS       
DEPARTMENT OF HEALTH,SOUTH CENTRAL AMBULANCE SERVICE NHS FOUNDATION TRUST,08/09/2020,F & C UK PROPERTY FUND ICVC                                      ,RENTS,OPERATIONS,1413326,"70,332.00",RENT - WERC
DEPARTMENT OF HEALTH,SOUTH CENTRAL AMBULANCE SERVICE NHS FOUNDATION TRUST,14/09/2020,HM REVENUE & CUSTOMS                                             ,PAYE/NI AUG 2020               ,"FINANCE, ESTATES AND PROCUREMENT",1413465,"4,047,670.28",PAYE/NI AUG 2020               
DEPARTMENT OF HEALTH,SOUTH CENTRAL AMBULANCE SERVICE NHS FOUNDATION TRUST,14/09/2020,HM REVENUE & CUSTOMS                                             ,APPRENTICESHIP LEVY AUG 2020   ,"FINANCE, ESTATES AND PROCUREMENT",1413469,"65,659.00",APPRENTICESHIP LEVY AUG 2020   
DEPARTMENT OF HEALTH,SOUTH CENTRAL AMBULANCE SERVICE NHS FOUNDATION TRUST,02/09/2020,EUROPEAN ELECTRONIQUE LTD                                        ,IT,ICT,1414348,"39,108.90",DATA LINES RENTAL & CALLS
DEPARTMENT OF HEALTH,SOUTH CENTRAL AMBULANCE SERVICE NHS FOUNDATION TRUST,31/08/2020,LANGUAGE LINE SOLUTIONS                                          ,FOREIGN LANGUAGE COSTS,OPERATIONS,1415834,"32,295.12",INTERPRETATION SERVICE
DEPARTMENT OF HEALTH,SOUTH CENTRAL AMBULANCE SERVICE NHS FOUNDATION TRUST,01/06/2020,BUSY BEE CLEANING SERVICES LTD                                   ,DOMESTIC SERVICE CONTRACT,"FINANCE, ESTATES AND PROCUREMENT",1415861,"51,167.50",CLEANING CONTRACT
DEPARTMENT OF HEALTH,SOUTH CENTRAL AMBULANCE SERVICE NHS FOUNDATION TRUST,01/07/2020,BUSY BEE CLEANING SERVICES LTD                                   ,DOMESTIC SERVICE CONTRACT,"FINANCE, ESTATES AND PROCUREMENT",1415862,"51,167.50",CLEANING CONTRACT
DEPARTMENT OF HEALTH,SOUTH CENTRAL AMBULANCE SERVICE NHS FOUNDATION TRUST,14/09/2020,J.TOMLINSON - INTEGRATED BUILDING SOLUTIONS                      ,BUILDING MAINT EXTERNAL,"FINANCE, ESTATES AND PROCUREMENT",1415868,"64,800.00",BUILDING MAINTENANCE CONTRACT
DEPARTMENT OF HEALTH,SOUTH CENTRAL AMBULANCE SERVICE NHS FOUNDATION TRUST,25/08/2020,F.A.S.T. AMBULANCE SERVICE LTD                                   ,PTS PRIVATE PROVIDERS,NON EMERGENCY SERVICES,1415895,"38,055.10",AUG PP HOURS                   
DEPARTMENT OF HEALTH,SOUTH CENTRAL AMBULANCE SERVICE NHS FOUNDATION TRUST,01/09/2020,F.A.S.T. AMBULANCE SERVICE LTD                                   ,PTS PRIVATE PROVIDERS,NON EMERGENCY SERVICES,1415896,"37,891.60",AUG PP HOURS                   
DEPARTMENT OF HEALTH,SOUTH CENTRAL AMBULANCE SERVICE NHS FOUNDATION TRUST,31/08/2020,ELITE MEDICAL AND AMBULANCE SERVICE LTD                          ,PTS PRIVATE PROVIDERS,NON EMERGENCY SERVICES,1415897,"38,235.14",AUG PP HOURS                   
DEPARTMENT OF HEALTH,SOUTH CENTRAL AMBULANCE SERVICE NHS FOUNDATION TRUST,14/09/2020,J.TOMLINSON - INTEGRATED BUILDING SOLUTIONS                      ,BUILDING MAINT EXTERNAL,"FINANCE, ESTATES AND PROCUREMENT",1415902,"96,000.00",BUILDING MAINTENANCE CONTRACT
DEPARTMENT OF HEALTH,SOUTH CENTRAL AMBULANCE SERVICE NHS FOUNDATION TRUST,16/08/2020,MEDI4 AMBULANCE SERVICES LTD                                     ,PTS PRIVATE PROVIDERS,NON EMERGENCY SERVICES,1415906,"42,212.13",AUG PP HOURS                   
DEPARTMENT OF HEALTH,SOUTH CENTRAL AMBULANCE SERVICE NHS FOUNDATION TRUST,23/08/2020,MEDI4 AMBULANCE SERVICES LTD                                     ,PTS PRIVATE PROVIDERS,NON EMERGENCY SERVICES,1415907,"43,421.21",AUG PP HOURS                   
DEPARTMENT OF HEALTH,SOUTH CENTRAL AMBULANCE SERVICE NHS FOUNDATION TRUST,31/08/2020,SMT AMBULANCE SERVICE LTD                                        ,PTS PRIVATE PROVIDERS,NON EMERGENCY SERVICES,1416706,"31,991.25",AUG PP HOURS                   
DEPARTMENT OF HEALTH,SOUTH CENTRAL AMBULANCE SERVICE NHS FOUNDATION TRUST,14/09/2020,J.TOMLINSON - INTEGRATED BUILDING SOLUTIONS                      ,BUILDING MAINT EXTERNAL,"FINANCE, ESTATES AND PROCUREMENT",1416716,"87,533.44",BUILDING MAINTENANCE CONTRACT
DEPARTMENT OF HEALTH,SOUTH CENTRAL AMBULANCE SERVICE NHS FOUNDATION TRUST,17/09/2020,ALLSTAR FUEL CARD SERVICES- DD ONLY                              ,DIESEL,OPERATIONS,1416751,"81,457.86",FUEL
DEPARTMENT OF HEALTH,SOUTH CENTRAL AMBULANCE SERVICE NHS FOUNDATION TRUST,31/08/2020,ADVANCED HEALTH AND CARE LTD                                     ,IT,OPERATIONS,1418524,"102,144.70",SOFTWARE PROVISION AND MAINTENANCE
DEPARTMENT OF HEALTH,SOUTH CENTRAL AMBULANCE SERVICE NHS FOUNDATION TRUST,06/09/2020,KK & LOGISTICS                                                   ,TAXI HIRE - PTS,NON EMERGENCY SERVICES,1419038,"25,093.19",SEPT PP HOURS                    
DEPARTMENT OF HEALTH,SOUTH CENTRAL AMBULANCE SERVICE NHS FOUNDATION TRUST,09/09/2020,ORTIVUS UK LTD                                                   ,IT,OPERATIONS,1419064,"39,272.88",DATA HOSTING & MANAGED SERVICE
DEPARTMENT OF HEALTH,SOUTH CENTRAL AMBULANCE SERVICE NHS FOUNDATION TRUST,31/08/2020,STREAMLINE (KENT) LTD                                            ,PTS PRIVATE PROVIDERS,NON EMERGENCY SERVICES,1420401,"45,205.20",SEPT PP HOURS
DEPARTMENT OF HEALTH,SOUTH CENTRAL AMBULANCE SERVICE NHS FOUNDATION TRUST,11/09/2020,PTS-247 LTD                                                      ,PTS PRIVATE PROVIDERS,NON EMERGENCY SERVICES,1420402,"126,936.00",AUG PP HOURS                   
DEPARTMENT OF HEALTH,SOUTH CENTRAL AMBULANCE SERVICE NHS FOUNDATION TRUST,30/08/2020,MEDI4 AMBULANCE SERVICES LTD                                     ,PTS PRIVATE PROVIDERS,NON EMERGENCY SERVICES,1420405,"43,595.69",AUG PP HOURS                   
DEPARTMENT OF HEALTH,SOUTH CENTRAL AMBULANCE SERVICE NHS FOUNDATION TRUST,07/09/2020,STREAMLINE (KENT) LTD                                            ,PTS PRIVATE PROVIDERS,NON EMERGENCY SERVICES,1420406,"40,500.60",AUG PP HOURS                   
DEPARTMENT OF HEALTH,SOUTH CENTRAL AMBULANCE SERVICE NHS FOUNDATION TRUST,07/09/2020,ELITE MEDICAL AND AMBULANCE SERVICE LTD                          ,PTS PRIVATE PROVIDERS,NON EMERGENCY SERVICES,1420407,"35,110.52",SEPT PP HOURS
DEPARTMENT OF HEALTH,SOUTH CENTRAL AMBULANCE SERVICE NHS FOUNDATION TRUST,26/05/2020,YORKSHIRE AMBULANCE SERVICE NHS TRUST                            ,RENTS,OPERATIONS,1420419,"31,500.00",RENT - YAS WAKEFIELD & ROTHERHAM 
DEPARTMENT OF HEALTH,SOUTH CENTRAL AMBULANCE SERVICE NHS FOUNDATION TRUST,03/09/2020,SOUTH CENTRAL FLEET SERVICES LTD                                 ,FLEET SERVICES,OPERATIONS,1420748,"471,024.00",ADDITIONAL MAINTENANCE SERVICE 
DEPARTMENT OF HEALTH,SOUTH CENTRAL AMBULANCE SERVICE NHS FOUNDATION TRUST,30/08/2020,CRG CLINICAL SERVICES LTD                                        ,PRIVATE AMBULANCE PROVIDERS,OPERATIONS,1421180,"71,002.99",AUG PP HOURS                   
DEPARTMENT OF HEALTH,SOUTH CENTRAL AMBULANCE SERVICE NHS FOUNDATION TRUST,30/08/2020,POLARIS MEDICAL SERVICES LTD                                     ,PRIVATE AMBULANCE PROVIDERS,OPERATIONS,1421182,"99,106.69",AUG PP HOURS                   
DEPARTMENT OF HEALTH,SOUTH CENTRAL AMBULANCE SERVICE NHS FOUNDATION TRUST,31/08/2020,POLARIS MEDICAL SERVICES LTD                                     ,PRIVATE AMBULANCE PROVIDERS,OPERATIONS,1421183,"38,134.57",AUG PP HOURS                   
DEPARTMENT OF HEALTH,SOUTH CENTRAL AMBULANCE SERVICE NHS FOUNDATION TRUST,31/08/2020,ELITE EVENT MEDICAL SERVICES LTD                                 ,PRIVATE AMBULANCE PROVIDERS,OPERATIONS,1421201,"28,181.27",JULY PP HOURS
DEPARTMENT OF HEALTH,SOUTH CENTRAL AMBULANCE SERVICE NHS FOUNDATION TRUST,15/09/2020,WEST OXFORDSHIRE D.C.                                            ,RENTS,"FINANCE, ESTATES AND PROCUREMENT",1421224,"107,112.76",RENT AND SERVICE CHARGE NORTHERN HOUSE
DEPARTMENT OF HEALTH,SOUTH CENTRAL AMBULANCE SERVICE NHS FOUNDATION TRUST,22/09/2020,SOUTH CENTRAL FLEET SERVICES LTD                                 ,FLEET SERVICES,OPERATIONS,1421242,"104,671.50",VEHICLE LEASE COSTS
DEPARTMENT OF HEALTH,SOUTH CENTRAL AMBULANCE SERVICE NHS FOUNDATION TRUST,22/09/2020,SOUTH CENTRAL FLEET SERVICES LTD                                 ,FLEET SERVICES,OPERATIONS,1421243,"112,560.00",VEHICLE LEASE COSTS
DEPARTMENT OF HEALTH,SOUTH CENTRAL AMBULANCE SERVICE NHS FOUNDATION TRUST,22/09/2020,SOUTH CENTRAL FLEET SERVICES LTD                                 ,FLEET SERVICES,OPERATIONS,1421244,"73,444.11",VEHICLE LEASE COSTS
DEPARTMENT OF HEALTH,SOUTH CENTRAL AMBULANCE SERVICE NHS FOUNDATION TRUST,22/09/2020,SOUTH CENTRAL FLEET SERVICES LTD                                 ,FLEET SERVICES,OPERATIONS,1421245,"164,135.14",VEHICLE LEASE COSTS
DEPARTMENT OF HEALTH,SOUTH CENTRAL AMBULANCE SERVICE NHS FOUNDATION TRUST,15/09/2020,NHS RESOLUTION                                                   ,INSURANCE PREMIUM,CORPORATE AFFAIRS,1421246,"301,446.20","2020/21 NHSLA LTPS, CNST & PES "
DEPARTMENT OF HEALTH,SOUTH CENTRAL AMBULANCE SERVICE NHS FOUNDATION TRUST,06/09/2020,CRG CLINICAL SERVICES LTD                                        ,PRIVATE AMBULANCE PROVIDERS,OPERATIONS,1421261,"60,786.06",SEPT PP HOURS                  
DEPARTMENT OF HEALTH,SOUTH CENTRAL AMBULANCE SERVICE NHS FOUNDATION TRUST,06/09/2020,POLARIS MEDICAL SERVICES LTD                                     ,PRIVATE AMBULANCE PROVIDERS,OPERATIONS,1421262,"90,848.69",SEPT PP HOURS                  
DEPARTMENT OF HEALTH,SOUTH CENTRAL AMBULANCE SERVICE NHS FOUNDATION TRUST,24/09/2020,ALLSTAR FUEL CARD SERVICES- DD ONLY                              ,DIESEL,OPERATIONS,1421585,"88,001.91",FUEL
DEPARTMENT OF HEALTH,SOUTH CENTRAL AMBULANCE SERVICE NHS FOUNDATION TRUST,13/09/2020,CRG CLINICAL SERVICES LTD                                        ,PRIVATE AMBULANCE PROVIDERS,OPERATIONS,1424897,"68,200.04",SEPT PP HOURS                  
DEPARTMENT OF HEALTH,SOUTH CENTRAL AMBULANCE SERVICE NHS FOUNDATION TRUST,20/09/2020,CRG CLINICAL SERVICES LTD                                        ,PRIVATE AMBULANCE PROVIDERS,OPERATIONS,1424898,"77,072.24",SEPT PP HOURS                  
DEPARTMENT OF HEALTH,SOUTH CENTRAL AMBULANCE SERVICE NHS FOUNDATION TRUST,13/09/2020,POLARIS MEDICAL SERVICES LTD                                     ,PRIVATE AMBULANCE PROVIDERS,OPERATIONS,1424906,"137,960.13",AUG PP HOURS                   
DEPARTMENT OF HEALTH,SOUTH CENTRAL AMBULANCE SERVICE NHS FOUNDATION TRUST,20/09/2020,POLARIS MEDICAL SERVICES LTD                                     ,PRIVATE AMBULANCE PROVIDERS,OPERATIONS,1424907,"143,444.41",SEPT PP HOURS                  
DEPARTMENT OF HEALTH,SOUTH CENTRAL AMBULANCE SERVICE NHS FOUNDATION TRUST,13/09/2020,KK & LOGISTICS                                                   ,TAXI HIRE - PTS,NON EMERGENCY SERVICES,1425009,"28,139.94",SEPT PP HOURS                  
DEPARTMENT OF HEALTH,SOUTH CENTRAL AMBULANCE SERVICE NHS FOUNDATION TRUST,28/09/2020,J.TOMLINSON - INTEGRATED BUILDING SOLUTIONS                      ,BUILDING MAINT EXTERNAL,"FINANCE, ESTATES AND PROCUREMENT",1425017,"66,717.34",BUILDING MAINTENANCE CONTRACT
DEPARTMENT OF HEALTH,SOUTH CENTRAL AMBULANCE SERVICE NHS FOUNDATION TRUST,30/09/2020,ALLSTAR FUEL CARD SERVICES- DD ONLY                              ,DIESEL,OPERATIONS,1425532,"91,627.44",FUEL
DEPARTMENT OF HEALTH,SOUTH CENTRAL AMBULANCE SERVICE NHS FOUNDATION TRUST,24/08/2020,CAMBRIDGE GARAGE (P'MOUTH) LTD                                   ,FLEET SERVICES,OPERATIONS,1425733,"31,608.38",VEHICLE REPAIRS
DEPARTMENT OF HEALTH,SOUTH CENTRAL AMBULANCE SERVICE NHS FOUNDATION TRUST,21/09/2020,ELITE MEDICAL AND AMBULANCE SERVICE LTD                          ,PTS PRIVATE PROVIDERS,NON EMERGENCY SERVICES,1426357,"39,645.15",SEPT PP HOURS
DEPARTMENT OF HEALTH,SOUTH CENTRAL AMBULANCE SERVICE NHS FOUNDATION TRUST,04/09/2020,F.A.S.T. AMBULANCE SERVICE LTD                                   ,PTS PRIVATE PROVIDERS,NON EMERGENCY SERVICES,1426359,"37,455.14",SEPT PP HOURS
DEPARTMENT OF HEALTH,SOUTH CENTRAL AMBULANCE SERVICE NHS FOUNDATION TRUST,14/09/2020,ELITE MEDICAL AND AMBULANCE SERVICE LTD                          ,PTS PRIVATE PROVIDERS,NON EMERGENCY SERVICES,1426363,"37,869.26",SEPT PP HOURS
DEPARTMENT OF HEALTH,SOUTH CENTRAL AMBULANCE SERVICE NHS FOUNDATION TRUST,28/09/2020,STRYKER UK LTD                                                   ,TRAINING/TEACHING AIDS/EQUIPMENT,CLINICAL SERVICES,1426379,"32,400.00",AMBULANCE EQUIPMENT
